fUSD/lending_fUSD_20241105
["ID","MTS","AMOUNT","RATE_DAILY","PERIOD"]
[341355114,1730825437819,-159.26545529,0.00016454,2]
[341355115,1730825437828,-163.099122,0.00016554,2]
[341355116,1730825437838,-900.6791769,0.0001892,2]
[341355117,1730825437847,-793.62341789,0.000199,2]
[341355118,1730825438019,-250.0,0.00021,2]
[341355119,1730825438029,-26213.85804907,0.00022,2]
[341355120,1730825438039,-300.0,0.00023,2]
[341355121,1730825438048,-373.17,0.00023061,2]
[341355122,1730825438058,-500.0,0.00024487,3]
[341355123,1730825438067,-355.25,0.00024621,2]
[341355124,1730825438076,-250.0,0.00024644,2]
[341355125,1730825438086,-166.26,0.00024779,2]
[341355126,1730825438096,-160.96,0.00024798,2]
[341355127,1730825438105,-1000.0,0.00024845,2]
[341355128,1730825438114,-380.61,0.00024877,30]
[341355129,1730825438123,-308.07830338,0.00024903,2]
[341355130,1730825438134,-227.05,0.00024975,2]
[341355131,1730825438144,-350.0,0.00025,2]
[341355132,1730825438154,-200.0,0.00025118,2]
[341355133,1730825438163,-23900.0,0.00025174,2]
[341355134,1730825438172,-253.1,0.00025201,2]
[341355135,1730825438181,-373.85,0.00025204,2]
[341355136,1730825438193,-250.0,0.00025273,2]
[341355137,1730825438203,-712.8193242,0.000253,5]
[341355138,1730825438212,-373.17,0.00025325,2]
[341355139,1730825438221,-500.0,0.00025361,2]
[341355140,1730825438231,-317.37,0.00025405,2]
[341355141,1730825438240,-632.53,0.00025571,2]
[341355142,1730825438249,-167.14,0.00025597,2]
[341355143,1730825438259,-226.79,0.00025649,2]
[341355144,1730825438268,-166.33,0.00025664,2]
[341355145,1730825438277,-158.68,0.000262,7]
[341355147,1730825438287,-6699.92,0.00026591,2]
[341355148,1730825438296,-263.23,0.00026591,2]
[341355149,1730825438305,-298.45,0.00026634,2]
[341355150,1730825438314,-152.13,0.00026638,2]
[341355151,1730825438323,-152.13,0.00026658,2]
[341355152,1730825438333,-152.13,0.00026679,2]
[341355153,1730825438342,-152.13,0.00026699,2]
[341355154,1730825438351,-152.13,0.0002672,2]
[341355155,1730825438361,-152.13,0.0002674,2]
[341355156,1730825438370,-152.13,0.00026761,2]
[341355157,1730825438379,-152.13,0.00026781,2]
[341355158,1730825438389,-152.13,0.00026802,2]
[341355159,1730825438399,-152.13,0.00026822,2]
[341355160,1730825438408,-152.13,0.00026843,2]
[341355161,1730825438418,-152.13,0.00026863,2]
[341355162,1730825438428,-152.13,0.00026884,2]
[341355163,1730825438437,-152.13,0.00026904,2]
[341355164,1730825438448,-226.79,0.00026932,2]
[341355165,1730825438458,-195.05446873,0.00027,120]
[341355166,1730825438467,-10123.66289654,0.00027,120]
[341355167,1730825438477,-400.0,0.00027,2]
[341355168,1730825438486,-1535.641983,0.000271,2]
[341355169,1730825438496,-150.01,0.00027279,2]
[341355170,1730825438507,-913.06174056,0.00027279,2]
[341355171,1730825438516,-2000.0,0.0002728,2]
[341355172,1730825438526,-200.0,0.0002728,2]
[341355173,1730825438536,-7500.0,0.00027397,2]
[341355174,1730825438547,-7500.0,0.00027397,2]
[341355175,1730825438557,-7500.0,0.00027397,2]
[341355176,1730825438566,-200.0,0.00027397,7]
[341355177,1730825438576,-189.88,0.00027397,10]
[341355178,1730825438585,-158.24,0.00027397,10]
[341355179,1730825438595,-380.61,0.00027461,30]
[341355180,1730825438605,-2000.0,0.00027553,2]
[341355181,1730825438617,-200.0,0.00027553,2]
[341355182,1730825438627,-373.17,0.00027589,2]
[341355183,1730825438636,-2000.0,0.00027828,2]
[341355184,1730825438646,-200.0,0.00027828,2]
[341355185,1730825438655,-158.02,0.00027861,2]
[341355186,1730825438664,-1000.0,0.0002795,2]
[341355187,1730825438674,-410.76735635,0.00028,15]
[341355188,1730825438683,-200.0,0.00028107,2]
[341355189,1730825438694,-226.79,0.00028214,2]
[341355190,1730825438703,-1245.0,0.00028337,2]
[341355191,1730825438713,-224.564,0.00028337,2]
[341355192,1730825438723,-557.0,0.00028337,2]
[341355193,1730825438732,-1987.0,0.00028337,2]
[341355194,1730825438742,-1264.0,0.00028337,2]
[341355195,1730825438751,-816.0,0.00028337,2]
[341355196,1730825438761,-8673.344,0.00028337,2]
[341355197,1730825438770,-150.0,0.00028337,2]
[341355198,1730825438779,-1156.0,0.00028337,2]
[341355199,1730825438789,-150.0,0.00028337,2]
[341355200,1730825438798,-5918.0,0.00028337,2]
[341355201,1730825438808,-1089.0,0.00028337,2]
[341355202,1730825438818,-157.71,0.00028858,2]
[341355203,1730825438828,-23450.09375044,0.0002888,2]
[341355204,1730825438837,-450.0,0.00029,2]
[341355205,1730825438847,-658.0,0.00029,14]
[341355206,1730825438856,-308.07830338,0.00029282,2]
[341355207,1730825438866,-226.79,0.00029497,2]
[341355208,1730825438876,-1875.81010074,0.000295,2]
[341355209,1730825438885,-167.14,0.00029822,2]
[341355210,1730825438894,-373.17,0.00029853,2]
[341355211,1730825438905,-1023.64408626,0.000299,2]
[341355212,1730825438915,-2272.21261898,0.0003,3]
[341355213,1730825438924,-359.6265,0.0003,2]
[341355214,1730825438934,-170.878,0.0003,2]
[341355215,1730825438944,-158.68,0.0003,7]
[341355216,1730825438953,-445.82225,0.0003,2]
[341355217,1730825438963,-3692.86431433,0.0003,2]
[341355218,1730825438972,-151.0,0.0003,120]
[341355219,1730825438982,-1077.38125,0.0003,2]
[341355220,1730825438991,-380.61,0.00030045,30]
[341355221,1730825439001,-1500.0,0.00030137,2]
[341355222,1730825439010,-226.79,0.00030779,2]
[341355223,1730825439021,-500.0,0.00031,2]
[341355224,1730825439030,-1000.0,0.00031056,2]
[341355225,1730825439039,-1650.0,0.000313,2]
[341355226,1730825439049,-391.0,0.000313,2]
[341355227,1730825439059,-11538.0,0.000313,5]
[341355228,1730825439068,-580.971,0.00031337,2]
[341355229,1730825439077,-809.0,0.00031337,2]
[341355230,1730825439087,-150.0,0.00031337,2]
[341355231,1730825439096,-150.0,0.00031337,2]
[341355232,1730825439106,-5918.0,0.00031337,2]
[341355233,1730825439116,-1087.0,0.00031337,2]
[341355234,1730825439125,-187.53314647,0.00031422,2]
[341355235,1730825439135,-3412.59739399,0.0003143,4]
[341355236,1730825439145,-4645.0,0.000319,15]
[341355237,1730825439155,-900.0,0.00032,33]
[341355238,1730825439164,-373.17,0.00032116,2]
[341355239,1730825439175,-1077.38125,0.00032144,2]
[341355240,1730825439184,-380.61,0.00032629,120]
[341355241,1730825439195,-165.80189565,0.00032877,2]
[341355242,1730825439209,-158.68,0.000329,7]
[341355243,1730825439219,-900.0,0.00033,34]
[341355244,1730825439229,-363.73748209,0.00033,21]
[341355245,1730825439239,-550.0,0.00033,2]
[341355246,1730825439248,-297.531091,0.00033,14]
[341355248,1730825439258,-180.0,0.00033151,2]
[341355249,1730825439268,-445.82225,0.00033491,2]
[341355250,1730825439277,-308.07830338,0.00033661,2]
[341355251,1730825439286,-900.0,0.00034,35]
[341355252,1730825439295,-1000.0,0.00034161,2]
[341355253,1730825439304,-5222.531,0.00034337,2]
[341355254,1730825439313,-373.17,0.0003438,2]
[341355255,1730825439323,-166.663,0.00034397,38]
[341355256,1730825439334,-500.0,0.00034397,10]
[341355257,1730825439343,-150.0,0.00034548,10]
[341355258,1730825439353,-359.6265,0.00034809,2]
[341355259,1730825439362,-900.0,0.00035,36]
[341355260,1730825439372,-361.63176324,0.00035,2]
[341355261,1730825439381,-2003.56,0.00035,60]
[341355262,1730825439391,-11643.52155965,0.00035,120]
[341355263,1730825439400,-380.61,0.00035213,120]
[341355264,1730825439410,-151.0,0.00035452,120]
[341355265,1730825439419,-1283.044,0.00035485,42]
[341355267,1730825439428,-317.37,0.00035567,2]
[341355268,1730825439437,-158.68,0.000356,7]
[341355269,1730825439451,-1132.8701183,0.00035616,120]
[341355270,1730825439460,-999.0,0.00035616,120]
[341355271,1730825439470,-900.0,0.00036,37]
[341355272,1730825439480,-160.96,0.00036031,120]
[341355273,1730825439489,-999.0,0.00036301,120]
[341355274,1730825439500,-253.1,0.00036434,120]
[341355275,1730825439509,-156.166,0.0003658,2]
[341355276,1730825439519,-373.17,0.00036644,2]
[341355277,1730825439529,-35115.4484652,0.0003678,2]
[341355278,1730825439543,-158.1,0.000368,31]
[341355279,1730825439552,-158.1,0.000368,31]
[341355280,1730825439561,-799.0,0.0003689,6]
[341355281,1730825439571,-2700.0,0.000369,13]
[341355282,1730825439581,-999.0,0.00036986,120]
[341355283,1730825439590,-900.0,0.00037,38]
[341355284,1730825439600,-10655.35563412,0.00037,30]
[341355285,1730825439610,-2020.9536753,0.00037,2]
[341355286,1730825439619,-166.26,0.00037168,2]
[341355287,1730825439630,-828.23669609,0.000372,103]
[341355288,1730825439639,-1000.0,0.00037267,2]
[341355289,1730825439649,-156.508,0.0003752,30]
[341355290,1730825439658,-999.0,0.00037671,120]
[341355291,1730825439668,-380.61,0.00037797,120]
[341355292,1730825439677,-900.0,0.00038,39]
[341355293,1730825439686,-308.07830338,0.0003804,2]
[341355294,1730825439698,-999.0,0.00038356,120]
[341355295,1730825439708,-4757.96544555,0.00038356,2]
[341355296,1730825439725,-1287.08455445,0.00038356,2]
[341355297,1730825439734,-158.1,0.000386,31]
[341355298,1730825439744,-158.1,0.000386,31]
[341355299,1730825439753,-158.1,0.000386,31]
[341355300,1730825439763,-158.1,0.000386,31]
[341355301,1730825439773,-6423.96488623,0.00038631,7]
[341355302,1730825439782,-5167.09390111,0.0003888,90]
[341355303,1730825439791,-373.17,0.00038908,2]
[341355304,1730825439801,-900.0,0.00039,40]
[341355305,1730825439811,-316.41112894,0.00039,120]
[341355306,1730825439821,-999.0,0.00039041,120]
[341355307,1730825439831,-828.23669609,0.00039065,114]
[341355308,1730825439841,-156.124,0.000394,2]
[341355309,1730825439851,-152.0,0.00039635,3]
[341355310,1730825439861,-157.11,0.00039671,2]
[341355311,1730825439871,-999.0,0.00039726,120]
[341355312,1730825439881,-761.29,0.00039726,2]
[341355313,1730825439890,-427.29,0.00039726,2]
[341355314,1730825439900,-427.29,0.00039726,2]
[341355315,1730825439909,-761.29,0.00039726,2]
[341355316,1730825439918,-850.64,0.00039726,2]
[341355317,1730825439928,-761.29,0.00039726,2]
[341355318,1730825439938,-761.29,0.00039726,2]
[341355319,1730825439951,-900.0,0.0004,41]
[341355320,1730825439961,-254.74099698,0.0004,120]
[341355321,1730825439971,-23382.83978871,0.0004,4]
[341355322,1730825439981,-152.74,0.0004,2]
[341355323,1730825439991,-152.74,0.0004,2]
[341355324,1730825440002,-152.74,0.0004,2]
[341355325,1730825440012,-152.74,0.0004,2]
[341355326,1730825440022,-152.74,0.0004,2]
[341355327,1730825440032,-152.74,0.0004,2]
[341355328,1730825440042,-152.74,0.0004,2]
[341355329,1730825440051,-152.74,0.0004,2]
[341355330,1730825440061,-152.74,0.0004,2]
[341355331,1730825440070,-152.74,0.0004,2]
[341355332,1730825440079,-152.74,0.0004,2]
[341355333,1730825440089,-152.74,0.0004,2]
[341355334,1730825440098,-152.74,0.0004,2]
[341355335,1730825440108,-152.74,0.0004,2]
[341355336,1730825440118,-152.74,0.0004,2]
[341355337,1730825440128,-152.74,0.0004,2]
[341355338,1730825440137,-158.1,0.000403,31]
[341355339,1730825440147,-158.1,0.000403,31]
[341355340,1730825440156,-158.1,0.000403,31]
[341355341,1730825440166,-158.1,0.000403,31]
[341355342,1730825440175,-380.61,0.00040381,120]
[341355343,1730825440185,-999.0,0.0004041,120]
[341355344,1730825440199,-888.00253,0.0004055,7]
[341355345,1730825440208,-761.29,0.00040685,2]
[341355346,1730825440218,-888.00253,0.0004075,7]
[341355347,1730825440227,-151.0,0.000409,14]
[341355348,1730825440238,-151.0,0.00040904,120]
[341355349,1730825440248,-888.00253,0.0004095,7]
[341355350,1730825440258,-900.0,0.00041,42]
[341355351,1730825440267,-3000.0,0.00041,70]
[341355352,1730825440276,-151.0,0.00041,120]
[341355353,1730825440285,-459.16,0.00041095,120]
[341355354,1730825440294,-5000.0,0.00041096,120]
[341355355,1730825440304,-157.0,0.00041096,2]
[341355356,1730825440312,-150.0,0.00041096,2]
[341355357,1730825440322,-251.66,0.00041096,2]
[341355358,1730825440332,-3212.0,0.000411,2]
[341355359,1730825440341,-888.00253,0.0004115,7]
[341355360,1730825440350,-373.17,0.00041172,2]
[341355361,1730825440361,-150.0,0.00041215,2]
[341355362,1730825440371,-150.0,0.00041286,2]
[341355363,1730825440381,-150.0,0.00041298,2]
[341355364,1730825440390,-355.58,0.0004137,2]
[341355365,1730825440401,-1000.0,0.0004137,2]
[341355366,1730825440410,-150.0,0.00041425,2]
[341355367,1730825440420,-888.00253,0.0004155,7]
[341355368,1730825440431,-150.0,0.00041568,120]
[341355369,1730825440440,-1001.61,0.00041644,30]
[341355370,1730825440452,-424.52,0.00041644,30]
[341355371,1730825440461,-150.0,0.00041701,2]
[341355372,1730825440471,-888.00253,0.0004175,7]
[341355373,1730825440480,-150.0,0.0004179,2]
[341355374,1730825440490,-1077.38125,0.00041888,14]
[341355375,1730825440500,-1574.4742292,0.00041889,120]
[341355376,1730825440510,-964.89,0.00041918,30]
[341355377,1730825440519,-964.89,0.00041918,30]
[341355378,1730825440529,-2035.87,0.00041918,30]
[341355379,1730825440541,-150.0,0.00041918,30]
[341355380,1730825440550,-150.0,0.00041918,30]
[341355381,1730825440560,-964.89,0.00041918,30]
[341355382,1730825440569,-964.89,0.00041918,30]
[341355383,1730825440578,-964.89,0.00041918,30]
[341355384,1730825440588,-888.00253,0.0004195,7]
[341355385,1730825440598,-150.0,0.00041981,2]
[341355386,1730825440607,-19310.31872738,0.00041999,14]
[341355387,1730825440620,-7074.42503835,0.00041999,10]
[341355388,1730825440629,-900.0,0.00042,43]
[341355389,1730825440639,-1110.94716988,0.00042,120]
[341355390,1730825440648,-9565.3,0.00042,120]
[341355391,1730825440658,-158.68,0.00042,30]
[341355392,1730825440667,-8190.24559292,0.00042,2]
[341355393,1730825440676,-158.1,0.00042,31]
[341355394,1730825440686,-158.1,0.00042,31]
[341355395,1730825440697,-158.1,0.00042,31]
[341355396,1730825440708,-158.1,0.00042,31]
[341355397,1730825440717,-150.0,0.00042094,120]
[341355398,1730825440727,-150.0,0.00042121,2]
[341355399,1730825440737,-150.0,0.00042126,2]
[341355400,1730825440747,-888.00253,0.0004215,7]
[341355401,1730825440757,-150.0,0.00042165,30]
[341355402,1730825440766,-150.0,0.00042165,30]
[341355403,1730825440776,-254.03343453,0.00042165,30]
[341355404,1730825440785,-150.0,0.00042165,30]
[341355405,1730825440795,-150.0,0.00042165,30]
[341355406,1730825440804,-156.22434895,0.00042165,30]
[341355407,1730825440814,-160.49969257,0.00042165,30]
[341355408,1730825440824,-150.0,0.00042165,30]
[341355409,1730825440834,-150.0,0.00042165,30]
[341355410,1730825440843,-154.79982701,0.00042165,30]
[341355411,1730825440853,-150.0,0.00042165,30]
[341355412,1730825440862,-150.0,0.00042177,2]
[341355413,1730825440872,-150.0,0.00042197,2]
[341355414,1730825440881,-152.74,0.0004221,2]
[341355415,1730825440891,-55600.0,0.0004222,30]
[341355416,1730825440901,-151.0,0.0004222,14]
[341355417,1730825440911,-611.3336327,0.00042248,14]
[341355418,1730825440920,-157.71,0.00042374,2]
[341355419,1730825440930,-308.07830338,0.0004242,28]
[341355420,1730825440940,-150.0,0.0004243,2]
[341355421,1730825440952,-300.0,0.00042471,2]
[341355422,1730825440961,-6388.0,0.000425,5]
[341355423,1730825440971,-150.0,0.00042594,2]
[341355424,1730825440981,-1000.0,0.000426,120]
[341355426,1730825440990,-150.0,0.00042601,2]
[341355428,1730825441000,-853.14,0.00042603,30]
[341355430,1730825441009,-1522.58,0.00042603,30]
[341355432,1730825441018,-452.7,0.00042603,30]
[341355434,1730825441028,-151.0,0.00042603,14]
[341355436,1730825441037,-151.0,0.00042603,14]
[341355438,1730825441047,-151.0,0.00042603,14]
[341355440,1730825441056,-173.764849,0.00042603,14]
[341355442,1730825441066,-173.764849,0.00042603,14]
[341355444,1730825441076,-173.770999,0.00042603,14]
[341355445,1730825441085,-151.0,0.00042603,14]
[341355446,1730825441094,-151.0,0.00042603,14]
[341355447,1730825441104,-191.7610282,0.00042607,2]
[341355448,1730825441113,-151.0,0.000427,14]
[341355449,1730825441122,-152.398124,0.000427,14]
[341355450,1730825441132,-151.0,0.000427,14]
[341355452,1730825441142,-253.597891,0.000427,14]
[341355454,1730825441151,-4145.0,0.000427,117]
[341355456,1730825441161,-150.0,0.00042721,2]
[341355458,1730825441170,-150.0,0.00042736,2]
[341355460,1730825441179,-964.89,0.0004274,30]
[341355462,1730825441188,-964.89,0.0004274,30]
[341355464,1730825441199,-964.89,0.0004274,30]
[341355466,1730825441208,-150.0,0.0004274,30]
[341355468,1730825441219,-964.89,0.0004274,30]
[341355470,1730825441233,-964.89,0.0004274,30]
[341355472,1730825441243,-964.89,0.0004274,30]
[341355475,1730825441253,-150.0,0.0004274,30]
[341355476,1730825441262,-150.0,0.00042741,2]
[341355478,1730825441272,-150.0,0.00042755,2]
[341355480,1730825441281,-150.0,0.00042774,2]
[341355482,1730825441291,-150.0,0.0004278,2]
[341355484,1730825441301,-150.0,0.00042795,2]
[341355486,1730825441311,-450.330636,0.00042798,120]
[341355488,1730825441320,-150.0,0.00042842,2]
[341355490,1730825441330,-445.82225,0.00042872,14]
[341355492,1730825441340,-6000.0,0.00042874,10]
[341355495,1730825441351,-150.0,0.00042885,2]
[341355496,1730825441360,-150.0,0.00042888,2]
[341355499,1730825441370,-152.74,0.0004289,2]
[341355500,1730825441379,-9539.22988657,0.000429,32]
[341355503,1730825441388,-20415.61517942,0.000429,60]
[341355505,1730825441398,-151.0,0.000429,14]
[341355507,1730825441407,-151.0,0.000429,14]
[341355509,1730825441417,-151.0,0.000429,7]
[341355511,1730825441426,-151.0,0.000429,14]
[341355513,1730825441435,-152.561755,0.000429,14]
[341355514,1730825441445,-1000.0,0.000429,2]
[341355516,1730825441454,-181.209276,0.000429,14]
[341355518,1730825441464,-151.0,0.000429,14]
[341355520,1730825441473,-151.0,0.000429,14]
[341355522,1730825441482,-151.0,0.000429,14]
[341355524,1730825441492,-3300.0,0.000429,15]
[341355526,1730825441501,-380.61,0.00042965,120]
[341355528,1730825441511,-150.0,0.00042979,2]
[341355530,1730825441520,-900.0,0.00043,44]
[341355532,1730825441529,-2996.0,0.00043,10]
[341355534,1730825441541,-551.00829718,0.00043,2]
[341355536,1730825441551,-292.95833715,0.00043,31]
[341355538,1730825441560,-5000.0,0.00043,15]
[341355540,1730825441569,-330.61129187,0.00043,90]
[341355542,1730825441579,-3000.0,0.00043,120]
[341355544,1730825441588,-2000.0,0.00043,30]
[341355546,1730825441597,-2000.0,0.00043,30]
[341355548,1730825441608,-2000.0,0.00043,30]
[341355550,1730825441617,-755.5677,0.00043,30]
[341355552,1730825441628,-2000.0,0.00043,30]
[341355554,1730825441637,-2000.0,0.00043,30]
[341355556,1730825441647,-1087.0,0.00043,7]
[341355558,1730825441656,-150.0,0.00043023,120]
[341355560,1730825441666,-205.36943054,0.00043031,2]
[341355562,1730825441675,-150.0,0.00043034,2]
[341355564,1730825441684,-150.0,0.00043056,2]
[341355566,1730825441694,-150.0,0.00043058,2]
[341355568,1730825441703,-150.0,0.00043088,2]
[341355570,1730825441712,-150.0,0.00043115,120]
[341355572,1730825441722,-1500.0,0.00043116,7]
[341355574,1730825441735,-258.641393,0.00043116,14]
[341355576,1730825441746,-151.0,0.00043116,14]
[341355578,1730825441757,-151.0,0.00043116,14]
[341355580,1730825441767,-150.0,0.00043124,2]
[341355582,1730825441776,-255.8,0.00043128,2]
[341355591,1730825441786,-150.0,0.00043132,2]
[341355593,1730825441941,-2446.47503162,0.00043148,2]
[341355595,1730825441955,-198.74112554,0.00043148,2]
[341355597,1730825441965,-232.27479391,0.00043148,2]
[341355599,1730825441974,-158.21800121,0.00043148,2]
[341355601,1730825441983,-150.0,0.00043158,2]
[341355603,1730825441993,-1500.0,0.00043167,7]
[341355605,1730825442003,-151.0,0.00043167,14]
[341355607,1730825442013,-151.0,0.00043167,14]
[341355609,1730825442022,-151.0,0.00043167,14]
[341355611,1730825442032,-151.0,0.00043167,14]
[341355613,1730825442042,-151.0,0.00043167,14]
[341355615,1730825442051,-151.0,0.00043167,14]
[341355617,1730825442061,-151.0,0.00043167,14]
[341355619,1730825442070,-151.0,0.00043167,14]
[341355621,1730825442079,-151.0,0.00043167,14]
[341355623,1730825442088,-151.0,0.00043167,14]
[341355625,1730825442097,-151.0,0.00043167,14]
[341355627,1730825442106,-151.0,0.00043167,14]
[341355629,1730825442116,-151.0,0.00043167,14]
[341355631,1730825442125,-151.0,0.00043167,14]
[341355633,1730825442135,-151.0,0.00043167,14]
[341355635,1730825442144,-151.0,0.00043167,14]
[341355637,1730825442154,-151.0,0.00043167,14]
[341355639,1730825442163,-151.0,0.00043167,14]
[341355641,1730825442172,-151.0,0.00043167,14]
[341355643,1730825442183,-150.0,0.00043239,2]
[341355645,1730825442192,-151.0,0.00043248,7]
[341355647,1730825442203,-151.0,0.00043248,7]
[341355649,1730825442212,-151.0,0.00043248,7]
[341355652,1730825442222,-151.0,0.00043248,14]
[341355654,1730825442231,-178.449412,0.00043248,14]
[341355656,1730825442240,-151.0,0.00043248,14]
[341355659,1730825442249,-207.244241,0.00043248,14]
[341355661,1730825442259,-151.0,0.00043248,14]
[341355663,1730825442268,-151.0,0.00043248,14]
[341355665,1730825442278,-267.354982,0.00043248,14]
[341355667,1730825442287,-151.0,0.00043248,14]
[341355669,1730825442296,-151.0,0.00043248,14]
[341355671,1730825442305,-151.0,0.00043248,14]
[341355672,1730825442314,-151.0,0.00043248,14]
[341355674,1730825442323,-151.0,0.00043248,14]
[341355676,1730825442332,-151.0,0.00043248,14]
[341355678,1730825442342,-265.5986,0.00043248,14]
[341355680,1730825442351,-151.0,0.00043248,14]
[341355682,1730825442361,-151.0,0.00043248,14]
[341355684,1730825442370,-151.0,0.00043248,14]
[341355686,1730825442379,-151.0,0.00043248,14]
[341355688,1730825442389,-173.764849,0.00043248,14]
[341355690,1730825442398,-173.764849,0.00043248,14]
[341355692,1730825442407,-173.764849,0.00043248,14]
[341355694,1730825442416,-173.764849,0.00043248,14]
[341355696,1730825442425,-173.764849,0.00043248,14]
[341355698,1730825442435,-173.764849,0.00043248,14]
[341355700,1730825442446,-173.764849,0.00043248,14]
[341355702,1730825442457,-173.764849,0.00043248,14]
[341355704,1730825442466,-151.0,0.00043248,14]
[341355706,1730825442475,-151.0,0.00043248,14]
[341355708,1730825442485,-151.0,0.00043248,14]
[341355710,1730825442494,-173.352992,0.00043248,14]
[341355712,1730825442504,-153.487322,0.00043248,14]
[341355714,1730825442514,-151.0,0.00043248,14]
[341355716,1730825442523,-151.0,0.00043248,14]
[341355718,1730825442533,-154.909192,0.00043248,14]
[341355720,1730825442547,-151.0,0.00043248,14]
[341355722,1730825442556,-151.0,0.00043248,14]
[341355724,1730825442565,-233.235928,0.00043248,14]
[341355726,1730825442575,-151.0,0.00043248,14]
[341355728,1730825442585,-151.0,0.00043248,14]
[341355730,1730825442595,-151.0,0.00043248,14]
[341355732,1730825442605,-151.0,0.00043248,14]
[341355734,1730825442616,-151.0,0.00043248,14]
[341355736,1730825442626,-151.0,0.00043248,14]
[341355738,1730825442636,-151.0,0.00043248,14]
[341355740,1730825442645,-151.0,0.00043248,14]
[341355742,1730825442655,-293.859632,0.00043248,14]
[341355744,1730825442664,-151.0,0.00043248,14]
[341355746,1730825442673,-151.0,0.00043248,14]
[341355748,1730825442682,-151.0,0.00043248,14]
[341355750,1730825442691,-151.0,0.00043248,14]
[341355752,1730825442702,-151.0,0.00043248,14]
[341355754,1730825442711,-293.051612,0.00043248,14]
[341355756,1730825442720,-151.0,0.00043248,14]
[341355758,1730825442729,-160.048768,0.00043248,14]
[341355760,1730825442738,-151.0,0.00043248,14]
[341355762,1730825442747,-151.0,0.00043248,14]
[341355764,1730825442757,-194.592068,0.00043248,14]
[341355766,1730825442767,-151.0,0.00043248,14]
[341355768,1730825442776,-151.0,0.00043248,14]
[341355770,1730825442785,-151.0,0.00043248,14]
[341355772,1730825442795,-205.49031,0.00043248,14]
[341355774,1730825442804,-205.49031,0.00043248,14]
[341355776,1730825442814,-205.49031,0.00043248,14]
[341355778,1730825442823,-205.49031,0.00043248,14]
[341355780,1730825442833,-205.49031,0.00043248,14]
[341355782,1730825442842,-205.49031,0.00043248,14]
[341355783,1730825442851,-205.49031,0.00043248,14]
[341355785,1730825442862,-205.49031,0.00043248,14]
[341355787,1730825442871,-151.0,0.00043248,14]
[341355789,1730825442880,-151.0,0.00043248,14]
[341355791,1730825442890,-151.0,0.00043248,14]
[341355793,1730825442900,-151.0,0.00043248,14]
[341355795,1730825442910,-307.940744,0.00043248,14]
[341355797,1730825442919,-307.940744,0.00043248,14]
[341355800,1730825442929,-307.940744,0.00043248,14]
[341355801,1730825442938,-307.940744,0.00043248,14]
[341355804,1730825442949,-160.917379,0.00043248,14]
[341355806,1730825442959,-151.0,0.00043248,14]
[341355808,1730825442969,-151.0,0.00043248,14]
[341355810,1730825442979,-151.0,0.00043248,14]